Workbook

Sheet Evidencia výsledkov
B1: Sem zadajte svoje výsledky
C3: Predmet | D3: Typ | E3: Popis | F3: Výsledky
C4: Súčasná francúzština | D4: Domáce úlohy | E4: Dejiny druhej svetovej vojny | F4: 80%
C5: Pokročilé programovanie v jazyku Java | D5: Stred semestra | F5: 75%
C6: Španielčina | D6: Domáce úlohy | F6: 50% | AF6: =IFERROR(AVERAGEIFS(tblZnámkyZaPredmety[Výsledky],tblZnámkyZaPredmety[Predmet],Výpočty!$C6,'Evidencia výsledkov'!D4:E10,Výpočty!AF$5)*Nastavenie!H9,"") -> 
C7: Teoretická fyzika | D7: Domáce úlohy | F7: 95%
C8: Súčasná francúzština | D8: Domáce úlohy | E8: Dejiny prvej svetovej vojny | F8: 90%
C9: Súčasná francúzština | D9: Domáce úlohy | E9: Strany 30 – 41 | F9: 80%
C10: Tvorivé písanie | D10: Esej | E10: Argumentačná esej | F10: 95%
C11: Matematika 1 | D11: Domáce úlohy | E11: Strany 21 – 26 | F11: 80%
C12: Matematika 2 | D12: Domáce úlohy | E12: Strany 15 – 18 | F12: 85%
C13: Matematika 1 | D13: Domáce úlohy | E13: Strany 34 – 36 | F13: 80%
C14: Matematika 2 | D14: Test | F14: 95%

Sheet Vaše výsledky
B1: Vaše výsledky
C3: Celkovo
C4: ="Hodiny: "&SUM(tblTriedy[Kreditová dotácia]) -> Hodiny: 24 | D4: =AVERAGE(D7:D31) -> 81% | E4: =AVERAGE(E7:E31) -> 2.71 | F4: =SUM(F7:F31) -> 2.63 | G4: =IFERROR(HLOOKUP(D4,lstSledovanieŠtudijnéhoPriemeru,2),"") -> B-
C6: Predmety | D6: % | E6: Študijný priemer | F6: Vážený študijný priemer | G6: Známka | H6: Celkové výsledky
C7: =Výpočty!C6 -> Súčasná francúzština | D7: =Výpočty!AL6 -> 83% | E7: =Výpočty!AM6 -> 3.00 | F7: =IFERROR(E7*Nastavenie!D9/SUM(tblTriedy[Kreditová dotácia]),"") -> 0.38 | G7: =Výpočty!AN6 -> B
C8: =Výpočty!C7 -> Teoretická fyzika | D8: =Výpočty!AL7 -> 95% | E8: =Výpočty!AM7 -> 4.00 | F8: =IFERROR(E8*Nastavenie!D10/SUM(tblTriedy[Kreditová dotácia]),"") -> 0.50 | G8: =Výpočty!AN7 -> A
C9: =Výpočty!C8 -> Matematika 1 | D9: =Výpočty!AL8 -> 80% | E9: =Výpočty!AM8 -> 2.67 | F9: =IFERROR(E9*Nastavenie!D11/SUM(tblTriedy[Kreditová dotácia]),"") -> 0.45 | G9: =Výpočty!AN8 -> B-
C10: =Výpočty!C9 -> Matematika 2 | D10: =Výpočty!AL9 -> 89% | E10: =Výpočty!AM9 -> 3.33 | F10: =IFERROR(E10*Nastavenie!D12/SUM(tblTriedy[Kreditová dotácia]),"") -> 0.56 | G10: =Výpočty!AN9 -> B+
C11: =Výpočty!C10 -> Pokročilé programovanie v jazyku Java | D11: =Výpočty!AL10 -> 75% | E11: =Výpočty!AM10 -> 2.00 | F11: =IFERROR(E11*Nastavenie!D13/SUM(tblTriedy[Kreditová dotácia]),"") -> 0.42 | G11: =Výpočty!AN10 -> C
C12: =Výpočty!C11 -> Španielčina | D12: =Výpočty!AL11 -> 50% | E12: =Výpočty!AM11 -> 0.00 | F12: =IFERROR(E12*Nastavenie!D14/SUM(tblTriedy[Kreditová dotácia]),"") -> 0.00 | G12: =Výpočty!AN11 -> FX
C13: =Výpočty!C12 -> Tvorivé písanie | D13: =Výpočty!AL12 -> 95% | E13: =Výpočty!AM12 -> 4.00 | F13: =IFERROR(E13*Nastavenie!D15/SUM(tblTriedy[Kreditová dotácia]),"") -> 0.33 | G13: =Výpočty!AN12 -> A
C14: =Výpočty!C13 ->  | D14: =Výpočty!AL13 ->  | E14: =Výpočty!AM13 ->  | F14: =IFERROR(E14*Nastavenie!D16/SUM(tblTriedy[Kreditová dotácia]),"") ->  | G14: =Výpočty!AN13 -> 
C15: =Výpočty!C14 ->  | D15: =Výpočty!AL14 ->  | E15: =Výpočty!AM14 ->  | F15: =IFERROR(E15*Nastavenie!D17/SUM(tblTriedy[Kreditová dotácia]),"") ->  | G15: =Výpočty!AN14 -> 
C16: =Výpočty!C15 ->  | D16: =Výpočty!AL15 ->  | E16: =Výpočty!AM15 ->  | F16: =IFERROR(E16*Nastavenie!D18/SUM(tblTriedy[Kreditová dotácia]),"") ->  | G16: =Výpočty!AN15 -> 
C17: =Výpočty!C16 ->  | D17: =Výpočty!AL16 ->  | E17: =Výpočty!AM16 ->  | F17: =IFERROR(E17*Nastavenie!D19/SUM(tblTriedy[Kreditová dotácia]),"") ->  | G17: =Výpočty!AN16 -> 
C18: =Výpočty!C17 ->  | D18: =Výpočty!AL17 ->  | E18: =Výpočty!AM17 ->  | F18: =IFERROR(E18*Nastavenie!D20/SUM(tblTriedy[Kreditová dotácia]),"") ->  | G18: =Výpočty!AN17 -> 
C19: =Výpočty!C18 ->  | D19: =Výpočty!AL18 ->  | E19: =Výpočty!AM18 ->  | F19: =IFERROR(E19*Nastavenie!D21/SUM(tblTriedy[Kreditová dotácia]),"") ->  | G19: =Výpočty!AN18 -> 
C20: =Výpočty!C19 ->  | D20: =Výpočty!AL19 ->  | E20: =Výpočty!AM19 ->  | F20: =IFERROR(E20*Nastavenie!D22/SUM(tblTriedy[Kreditová dotácia]),"") ->  | G20: =Výpočty!AN19 -> 
C21: =Výpočty!C20 ->  | D21: =Výpočty!AL20 ->  | E21: =Výpočty!AM20 ->  | F21: =IFERROR(E21*Nastavenie!D23/SUM(tblTriedy[Kreditová dotácia]),"") ->  | G21: =Výpočty!AN20 -> 
C22: =Výpočty!C21 ->  | D22: =Výpočty!AL21 ->  | E22: =Výpočty!AM21 ->  | F22: =IFERROR(E22*Nastavenie!D24/SUM(tblTriedy[Kreditová dotácia]),"") ->  | G22: =Výpočty!AN21 -> 
C23: =Výpočty!C22 ->  | D23: =Výpočty!AL22 ->  | E23: =Výpočty!AM22 ->  | F23: =IFERROR(E23*Nastavenie!D25/SUM(tblTriedy[Kreditová dotácia]),"") ->  | G23: =Výpočty!AN22 -> 
C24: =Výpočty!C23 ->  | D24: =Výpočty!AL23 ->  | E24: =Výpočty!AM23 ->  | F24: =IFERROR(E24*Nastavenie!D26/SUM(tblTriedy[Kreditová dotácia]),"") ->  | G24: =Výpočty!AN23 -> 
C25: =Výpočty!C24 ->  | D25: =Výpočty!AL24 ->  | E25: =Výpočty!AM24 ->  | F25: =IFERROR(E25*Nastavenie!D27/SUM(tblTriedy[Kreditová dotácia]),"") ->  | G25: =Výpočty!AN24 -> 
C26: =Výpočty!C25 ->  | D26: =Výpočty!AL25 ->  | E26: =Výpočty!AM25 ->  | F26: =IFERROR(E26*Nastavenie!D28/SUM(tblTriedy[Kreditová dotácia]),"") ->  | G26: =Výpočty!AN25 -> 
C27: =Výpočty!C26 ->  | D27: =Výpočty!AL26 ->  | E27: =Výpočty!AM26 ->  | F27: =IFERROR(E27*Nastavenie!D29/SUM(tblTriedy[Kreditová dotácia]),"") ->  | G27: =Výpočty!AN26 -> 
C28: =Výpočty!C27 ->  | D28: =Výpočty!AL27 ->  | E28: =Výpočty!AM27 ->  | F28: =IFERROR(E28*Nastavenie!D30/SUM(tblTriedy[Kreditová dotácia]),"") ->  | G28: =Výpočty!AN27 -> 
C29: =Výpočty!C28 ->  | D29: =Výpočty!AL28 ->  | E29: =Výpočty!AM28 ->  | F29: =IFERROR(E29*Nastavenie!D31/SUM(tblTriedy[Kreditová dotácia]),"") ->  | G29: =Výpočty!AN28 -> 
C30: =Výpočty!C29 ->  | D30: =Výpočty!AL29 ->  | E30: =Výpočty!AM29 ->  | F30: =IFERROR(E30*Nastavenie!D32/SUM(tblTriedy[Kreditová dotácia]),"") ->  | G30: =Výpočty!AN29 -> 
C31: =Výpočty!C30 ->  | D31: =Výpočty!AL30 ->  | E31: =Výpočty!AM30 ->  | F31: =IFERROR(E31*Nastavenie!D33/SUM(tblTriedy[Kreditová dotácia]),"") ->  | G31: =Výpočty!AN30 -> 

Sheet Nastavenie
B1: Nastavenie
C2: Sledovanie výsledkov a študijného priemeru
C3: Percentuálna hodnota | D3: 0% | E3: 60% | F3: 63% | G3: 67% | H3: 70% | I3: 73% | J3: 77% | K3: 80% | L3: 83% | M3: 87% | N3: 90% | O3: 93% | P3: 97%
C4: Známka | D4: FX | E4: D- | F4: D | G4: D+ | H4: C- | I4: C | J4: C+ | K4: B- | L4: B | M4: B+ | N4: A- | O4: A | P4: A+
C5: Študijný priemer | D5: 0 | E5: 0.67 | F5: 1 | G5: 1.33 | H5: 1.67 | I5: 2 | J5: 2.33 | K5: 2.67 | L5: 3 | M5: 3.33 | N5: 3.67 | O5: 4 | P5: 4
C7: Vážený priemer až v 25 predmetoch
C8: Zapísané predmety | D8: Kreditová dotácia | E8: Domáce úlohy | F8: Esej | G8: Test | H8: Projekt | I8: Stred semestra | J8: Záverečná skúška | K8: Iné | L8: Celkovo v %
C9: Súčasná francúzština | D9: 3.0 | E9: 10% | F9: 15% | G9: 15% | H9: 10% | I9: 20% | J9: 30% | L9: =SUM(tblTriedy[[#This Row],[Domáce úlohy]:[Iné]]) -> 100%
C10: Teoretická fyzika | D10: 3.0 | E10: 15% | F10: 15% | G10: 10% | H10: 10% | I10: 15% | J10: 30% | K10: 5% | L10: =SUM(tblTriedy[[#This Row],[Domáce úlohy]:[Iné]]) -> 100%
C11: Matematika 1 | D11: 4.0 | E11: 10% | F11: 15% | G11: 15% | H11: 10% | I11: 20% | J11: 30% | L11: =SUM(tblTriedy[[#This Row],[Domáce úlohy]:[Iné]]) -> 100%
C12: Matematika 2 | D12: 4.0 | E12: 15% | F12: 15% | G12: 10% | H12: 10% | I12: 15% | J12: 30% | K12: 5% | L12: =SUM(tblTriedy[[#This Row],[Domáce úlohy]:[Iné]]) -> 100%
C13: Pokročilé programovanie v jazyku Java | D13: 5.0 | E13: 15% | F13: 15% | G13: 10% | H13: 10% | I13: 20% | J13: 30% | L13: =SUM(tblTriedy[[#This Row],[Domáce úlohy]:[Iné]]) -> 100%
C14: Španielčina | D14: 3.0 | E14: 10% | F14: 15% | G14: 17% | H14: 13% | I14: 20% | J14: 20% | K14: 5% | L14: =SUM(tblTriedy[[#This Row],[Domáce úlohy]:[Iné]]) -> 100%
C15: Tvorivé písanie | D15: 2.0 | E15: 15% | F15: 15% | G15: 12% | H15: 15% | I15: 15% | J15: 25% | K15: 3% | L15: =SUM(tblTriedy[[#This Row],[Domáce úlohy]:[Iné]]) -> 100%

Sheet Výpočty (hidden)
B1: Výpočty
C2: Tento hárok slúži na výpočet známok a váženého študijného priemeru a mal by zostať skrytý. Zmeny v tomto hárku môžu viesť k chybám.
C4: Zoznam navštevovaných predmetov | D4: Hodnotenie (z 1) | AC4: Výpočet známky
C5: Predmet | D5: 1 | E5: 2 | F5: 3 | G5: 4 | H5: 5 | I5: 6 | J5: 7 | K5: 8 | L5: 9 | M5: 10 | N5: 11 | O5: 12 | P5: 13 | Q5: 14 | R5: 15 | S5: 16 | T5: 17 | U5: 18 | V5: 19 | W5: 20 | X5: 21 | Y5: 22 | Z5: 23 | AA5: 24 | AB5: 25 | AC5: =tblTriedy[[#Headers],[Domáce úlohy]] -> Domáce úlohy | AD5: =tblTriedy[[#Headers],[Esej]] -> Esej | AE5: =tblTriedy[[#Headers],[Test]] -> Test | AF5: =tblTriedy[[#Headers],[Projekt]] -> Projekt | AG5: =tblTriedy[[#Headers],[Stred semestra]] -> Stred semestra | AH5: =tblTriedy[[#Headers],[Záverečná skúška]] -> Záverečná skúška | AI5: =tblTriedy[[#Headers],[Iné]] -> Iné | AJ5: Celkom | AK5: Plný počet bodov | AL5: Celkovo v % | AM5: Bodové hodnotenie | AN5: Známka
C6: =IF(Nastavenie!C9="","",Nastavenie!C9) -> Súčasná francúzština | D6: =IFERROR(INDEX(tblZnámkyZaPredmety[],MATCH($C6:$C30&D$5:AB$5,Výpočty!$C$33:$C$657,0),4),"") -> 80% | E6: 90% | F6: 80% | AC6: =IFERROR(AVERAGEIFS(tblZnámkyZaPredmety[Výsledky],tblZnámkyZaPredmety[Predmet],Výpočty!$C6,tblZnámkyZaPredmety[Typ],Výpočty!AC$5)*Nastavenie!E9,"") -> 0.08333333333 | AD6: =IFERROR(AVERAGEIFS(tblZnámkyZaPredmety[Výsledky],tblZnámkyZaPredmety[Predmet],Výpočty!$C6,tblZnámkyZaPredmety[Typ],Výpočty!AD$5)*Nastavenie!F9,"") ->  | AE6: =IFERROR(AVERAGEIFS(tblZnámkyZaPredmety[Výsledky],tblZnámkyZaPredmety[Predmet],Výpočty!$C6,tblZnámkyZaPredmety[Typ],Výpočty!AE$5)*Nastavenie!G9,"") ->  | AF6: =IFERROR(AVERAGEIFS(tblZnámkyZaPredmety[Výsledky],tblZnámkyZaPredmety[Predmet],Výpočty!$C6,tblZnámkyZaPredmety[Typ],Výpočty!AF$5)*Nastavenie!H9,"") ->  | AG6: =IFERROR(AVERAGEIFS(tblZnámkyZaPredmety[Výsledky],tblZnámkyZaPredmety[Predmet],Výpočty!$C6,tblZnámkyZaPredmety[Typ],Výpočty!AG$5)*Nastavenie!I9,"") ->  | AH6: =IFERROR(AVERAGEIFS(tblZnámkyZaPredmety[Výsledky],tblZnámkyZaPredmety[Predmet],Výpočty!$C6,tblZnámkyZaPredmety[Typ],Výpočty!AH$5)*Nastavenie!J9,"") ->  | AI6: =IFERROR(AVERAGEIFS(tblZnámkyZaPredmety[Výsledky],tblZnámkyZaPredmety[Predmet],Výpočty!$C6,tblZnámkyZaPredmety[Typ],Výpočty!AI$5)*Nastavenie!K9,"") ->  | AJ6: =SUM(AC6:AI6) -> 0.08333333333 | AK6: =SUMIFS(Nastavenie!E9:K9,Výpočty!AC6:AI6,">0") -> 0.1 | AL6: =IFERROR(AJ6/AK6,"") -> 83% | AM6: =IFERROR(HLOOKUP(AL6,lstSledovanieŠtudijnéhoPriemeru,3),"") -> 3 | AN6: =IFERROR(HLOOKUP(AL6,lstSledovanieŠtudijnéhoPriemeru,2),"") -> B
C7: =IF(Nastavenie!C10="","",Nastavenie!C10) -> Teoretická fyzika | D7: 95% | AC7: =IFERROR(AVERAGEIFS(tblZnámkyZaPredmety[Výsledky],tblZnámkyZaPredmety[Predmet],Výpočty!$C7,tblZnámkyZaPredmety[Typ],Výpočty!AC$5)*Nastavenie!E10,"") -> 0.1425 | AD7: =IFERROR(AVERAGEIFS(tblZnámkyZaPredmety[Výsledky],tblZnámkyZaPredmety[Predmet],Výpočty!$C7,tblZnámkyZaPredmety[Typ],Výpočty!AD$5)*Nastavenie!F10,"") ->  | AE7: =IFERROR(AVERAGEIFS(tblZnámkyZaPredmety[Výsledky],tblZnámkyZaPredmety[Predmet],Výpočty!$C7,tblZnámkyZaPredmety[Typ],Výpočty!AE$5)*Nastavenie!G10,"") ->  | AF7: =IFERROR(AVERAGEIFS(tblZnámkyZaPredmety[Výsledky],tblZnámkyZaPredmety[Predmet],Výpočty!$C7,tblZnámkyZaPredmety[Typ],Výpočty!AF$5)*Nastavenie!H10,"") ->  | AG7: =IFERROR(AVERAGEIFS(tblZnámkyZaPredmety[Výsledky],tblZnámkyZaPredmety[Predmet],Výpočty!$C7,tblZnámkyZaPredmety[Typ],Výpočty!AG$5)*Nastavenie!I10,"") ->  | AH7: =IFERROR(AVERAGEIFS(tblZnámkyZaPredmety[Výsledky],tblZnámkyZaPredmety[Predmet],Výpočty!$C7,tblZnámkyZaPredmety[Typ],Výpočty!AH$5)*Nastavenie!J10,"") ->  | AI7: =IFERROR(AVERAGEIFS(tblZnámkyZaPredmety[Výsledky],tblZnámkyZaPredmety[Predmet],Výpočty!$C7,tblZnámkyZaPredmety[Typ],Výpočty!AI$5)*Nastavenie!K10,"") ->  | AJ7: =SUM(AC7:AI7) -> 0.1425 | AK7: =SUMIFS(Nastavenie!E10:K10,Výpočty!AC7:AI7,">0") -> 0.15 | AL7: =IFERROR(AJ7/AK7,"") -> 95% | AM7: 4 | AN7: A
C8: =IF(Nastavenie!C11="","",Nastavenie!C11) -> Matematika 1 | D8: 80% | E8: 80% | AC8: =IFERROR(AVERAGEIFS(tblZnámkyZaPredmety[Výsledky],tblZnámkyZaPredmety[Predmet],Výpočty!$C8,tblZnámkyZaPredmety[Typ],Výpočty!AC$5)*Nastavenie!E11,"") -> 0.08 | AD8: =IFERROR(AVERAGEIFS(tblZnámkyZaPredmety[Výsledky],tblZnámkyZaPredmety[Predmet],Výpočty!$C8,tblZnámkyZaPredmety[Typ],Výpočty!AD$5)*Nastavenie!F11,"") ->  | AE8: =IFERROR(AVERAGEIFS(tblZnámkyZaPredmety[Výsledky],tblZnámkyZaPredmety[Predmet],Výpočty!$C8,tblZnámkyZaPredmety[Typ],Výpočty!AE$5)*Nastavenie!G11,"") ->  | AF8: =IFERROR(AVERAGEIFS(tblZnámkyZaPredmety[Výsledky],tblZnámkyZaPredmety[Predmet],Výpočty!$C8,tblZnámkyZaPredmety[Typ],Výpočty!AF$5)*Nastavenie!H11,"") ->  | AG8: =IFERROR(AVERAGEIFS(tblZnámkyZaPredmety[Výsledky],tblZnámkyZaPredmety[Predmet],Výpočty!$C8,tblZnámkyZaPredmety[Typ],Výpočty!AG$5)*Nastavenie!I11,"") ->  | AH8: =IFERROR(AVERAGEIFS(tblZnámkyZaPredmety[Výsledky],tblZnámkyZaPredmety[Predmet],Výpočty!$C8,tblZnámkyZaPredmety[Typ],Výpočty!AH$5)*Nastavenie!J11,"") ->  | AI8: =IFERROR(AVERAGEIFS(tblZnámkyZaPredmety[Výsledky],tblZnámkyZaPredmety[Predmet],Výpočty!$C8,tblZnámkyZaPredmety[Typ],Výpočty!AI$5)*Nastavenie!K11,"") ->  | AJ8: 0.08 | AK8: =SUMIFS(Nastavenie!E11:K11,Výpočty!AC8:AI8,">0") -> 0.1 | AL8: 80% | AM8: 2.67 | AN8: B-
C9: =IF(Nastavenie!C12="","",Nastavenie!C12) -> Matematika 2 | D9: 85% | E9: 95% | AC9: =IFERROR(AVERAGEIFS(tblZnámkyZaPredmety[Výsledky],tblZnámkyZaPredmety[Predmet],Výpočty!$C9,tblZnámkyZaPredmety[Typ],Výpočty!AC$5)*Nastavenie!E12,"") -> 0.1275 | AD9: =IFERROR(AVERAGEIFS(tblZnámkyZaPredmety[Výsledky],tblZnámkyZaPredmety[Predmet],Výpočty!$C9,tblZnámkyZaPredmety[Typ],Výpočty!AD$5)*Nastavenie!F12,"") ->  | AE9: =IFERROR(AVERAGEIFS(tblZnámkyZaPredmety[Výsledky],tblZnámkyZaPredmety[Predmet],Výpočty!$C9,tblZnámkyZaPredmety[Typ],Výpočty!AE$5)*Nastavenie!G12,"") -> 0.095 | AF9: =IFERROR(AVERAGEIFS(tblZnámkyZaPredmety[Výsledky],tblZnámkyZaPredmety[Predmet],Výpočty!$C9,tblZnámkyZaPredmety[Typ],Výpočty!AF$5)*Nastavenie!H12,"") ->  | AG9: =IFERROR(AVERAGEIFS(tblZnámkyZaPredmety[Výsledky],tblZnámkyZaPredmety[Predmet],Výpočty!$C9,tblZnámkyZaPredmety[Typ],Výpočty!AG$5)*Nastavenie!I12,"") ->  | AH9: =IFERROR(AVERAGEIFS(tblZnámkyZaPredmety[Výsledky],tblZnámkyZaPredmety[Predmet],Výpočty!$C9,tblZnámkyZaPredmety[Typ],Výpočty!AH$5)*Nastavenie!J12,"") ->  | AI9: =IFERROR(AVERAGEIFS(tblZnámkyZaPredmety[Výsledky],tblZnámkyZaPredmety[Predmet],Výpočty!$C9,tblZnámkyZaPredmety[Typ],Výpočty!AI$5)*Nastavenie!K12,"") ->  | AJ9: 0.2225 | AK9: =SUMIFS(Nastavenie!E12:K12,Výpočty!AC9:AI9,">0") -> 0.25 | AL9: 89% | AM9: 3.33 | AN9: B+
C10: =IF(Nastavenie!C13="","",Nastavenie!C13) -> Pokročilé programovanie v jazyku Java | D10: 75% | AC10: =IFERROR(AVERAGEIFS(tblZnámkyZaPredmety[Výsledky],tblZnámkyZaPredmety[Predmet],Výpočty!$C10,tblZnámkyZaPredmety[Typ],Výpočty!AC$5)*Nastavenie!E13,"") ->  | AD10: =IFERROR(AVERAGEIFS(tblZnámkyZaPredmety[Výsledky],tblZnámkyZaPredmety[Predmet],Výpočty!$C10,tblZnámkyZaPredmety[Typ],Výpočty!AD$5)*Nastavenie!F13,"") ->  | AE10: =IFERROR(AVERAGEIFS(tblZnámkyZaPredmety[Výsledky],tblZnámkyZaPredmety[Predmet],Výpočty!$C10,tblZnámkyZaPredmety[Typ],Výpočty!AE$5)*Nastavenie!G13,"") ->  | AF10: =IFERROR(AVERAGEIFS(tblZnámkyZaPredmety[Výsledky],tblZnámkyZaPredmety[Predmet],Výpočty!$C10,tblZnámkyZaPredmety[Typ],Výpočty!AF$5)*Nastavenie!H13,"") ->  | AG10: =IFERROR(AVERAGEIFS(tblZnámkyZaPredmety[Výsledky],tblZnámkyZaPredmety[Predmet],Výpočty!$C10,tblZnámkyZaPredmety[Typ],Výpočty!AG$5)*Nastavenie!I13,"") -> 0.15 | AH10: =IFERROR(AVERAGEIFS(tblZnámkyZaPredmety[Výsledky],tblZnámkyZaPredmety[Predmet],Výpočty!$C10,tblZnámkyZaPredmety[Typ],Výpočty!AH$5)*Nastavenie!J13,"") ->  | AI10: =IFERROR(AVERAGEIFS(tblZnámkyZaPredmety[Výsledky],tblZnámkyZaPredmety[Predmet],Výpočty!$C10,tblZnámkyZaPredmety[Typ],Výpočty!AI$5)*Nastavenie!K13,"") ->  | AJ10: 0.15 | AK10: =SUMIFS(Nastavenie!E13:K13,Výpočty!AC10:AI10,">0") -> 0.2 | AL10: 75% | AM10: 2 | AN10: C
C11: =IF(Nastavenie!C14="","",Nastavenie!C14) -> Španielčina | D11: 50% | AC11: =IFERROR(AVERAGEIFS(tblZnámkyZaPredmety[Výsledky],tblZnámkyZaPredmety[Predmet],Výpočty!$C11,tblZnámkyZaPredmety[Typ],Výpočty!AC$5)*Nastavenie!E14,"") -> 0.05 | AD11: =IFERROR(AVERAGEIFS(tblZnámkyZaPredmety[Výsledky],tblZnámkyZaPredmety[Predmet],Výpočty!$C11,tblZnámkyZaPredmety[Typ],Výpočty!AD$5)*Nastavenie!F14,"") ->  | AE11: =IFERROR(AVERAGEIFS(tblZnámkyZaPredmety[Výsledky],tblZnámkyZaPredmety[Predmet],Výpočty!$C11,tblZnámkyZaPredmety[Typ],Výpočty!AE$5)*Nastavenie!G14,"") ->  | AF11: =IFERROR(AVERAGEIFS(tblZnámkyZaPredmety[Výsledky],tblZnámkyZaPredmety[Predmet],Výpočty!$C11,tblZnámkyZaPredmety[Typ],Výpočty!AF$5)*Nastavenie!H14,"") ->  | AG11: =IFERROR(AVERAGEIFS(tblZnámkyZaPredmety[Výsledky],tblZnámkyZaPredmety[Predmet],Výpočty!$C11,tblZnámkyZaPredmety[Typ],Výpočty!AG$5)*Nastavenie!I14,"") ->  | AH11: =IFERROR(AVERAGEIFS(tblZnámkyZaPredmety[Výsledky],tblZnámkyZaPredmety[Predmet],Výpočty!$C11,tblZnámkyZaPredmety[Typ],Výpočty!AH$5)*Nastavenie!J14,"") ->  | AI11: =IFERROR(AVERAGEIFS(tblZnámkyZaPredmety[Výsledky],tblZnámkyZaPredmety[Predmet],Výpočty!$C11,tblZnámkyZaPredmety[Typ],Výpočty!AI$5)*Nastavenie!K14,"") ->  | AJ11: 0.05 | AK11: =SUMIFS(Nastavenie!E14:K14,Výpočty!AC11:AI11,">0") -> 0.1 | AL11: 50% | AM11: 0 | AN11: FX
C12: =IF(Nastavenie!C15="","",Nastavenie!C15) -> Tvorivé písanie | D12: 95% | AC12: =IFERROR(AVERAGEIFS(tblZnámkyZaPredmety[Výsledky],tblZnámkyZaPredmety[Predmet],Výpočty!$C12,tblZnámkyZaPredmety[Typ],Výpočty!AC$5)*Nastavenie!E15,"") ->  | AD12: =IFERROR(AVERAGEIFS(tblZnámkyZaPredmety[Výsledky],tblZnámkyZaPredmety[Predmet],Výpočty!$C12,tblZnámkyZaPredmety[Typ],Výpočty!AD$5)*Nastavenie!F15,"") -> 0.1425 | AE12: =IFERROR(AVERAGEIFS(tblZnámkyZaPredmety[Výsledky],tblZnámkyZaPredmety[Predmet],Výpočty!$C12,tblZnámkyZaPredmety[Typ],Výpočty!AE$5)*Nastavenie!G15,"") ->  | AF12: =IFERROR(AVERAGEIFS(tblZnámkyZaPredmety[Výsledky],tblZnámkyZaPredmety[Predmet],Výpočty!$C12,tblZnámkyZaPredmety[Typ],Výpočty!AF$5)*Nastavenie!H15,"") ->  | AG12: =IFERROR(AVERAGEIFS(tblZnámkyZaPredmety[Výsledky],tblZnámkyZaPredmety[Predmet],Výpočty!$C12,tblZnámkyZaPredmety[Typ],Výpočty!AG$5)*Nastavenie!I15,"") ->  | AH12: =IFERROR(AVERAGEIFS(tblZnámkyZaPredmety[Výsledky],tblZnámkyZaPredmety[Predmet],Výpočty!$C12,tblZnámkyZaPredmety[Typ],Výpočty!AH$5)*Nastavenie!J15,"") ->  | AI12: =IFERROR(AVERAGEIFS(tblZnámkyZaPredmety[Výsledky],tblZnámkyZaPredmety[Predmet],Výpočty!$C12,tblZnámkyZaPredmety[Typ],Výpočty!AI$5)*Nastavenie!K15,"") ->  | AJ12: 0.1425 | AK12: =SUMIFS(Nastavenie!E15:K15,Výpočty!AC12:AI12,">0") -> 0.15 | AL12: 95% | AM12: 4 | AN12: A
C13: =IF(Nastavenie!C16="","",Nastavenie!C16) ->  | AC13: =IFERROR(AVERAGEIFS(tblZnámkyZaPredmety[Výsledky],tblZnámkyZaPredmety[Predmet],Výpočty!$C13,tblZnámkyZaPredmety[Typ],Výpočty!AC$5)*Nastavenie!E16,"") ->  | AD13: =IFERROR(AVERAGEIFS(tblZnámkyZaPredmety[Výsledky],tblZnámkyZaPredmety[Predmet],Výpočty!$C13,tblZnámkyZaPredmety[Typ],Výpočty!AD$5)*Nastavenie!F16,"") ->  | AE13: =IFERROR(AVERAGEIFS(tblZnámkyZaPredmety[Výsledky],tblZnámkyZaPredmety[Predmet],Výpočty!$C13,tblZnámkyZaPredmety[Typ],Výpočty!AE$5)*Nastavenie!G16,"") ->  | AF13: =IFERROR(AVERAGEIFS(tblZnámkyZaPredmety[Výsledky],tblZnámkyZaPredmety[Predmet],Výpočty!$C13,tblZnámkyZaPredmety[Typ],Výpočty!AF$5)*Nastavenie!H16,"") ->  | AG13: =IFERROR(AVERAGEIFS(tblZnámkyZaPredmety[Výsledky],tblZnámkyZaPredmety[Predmet],Výpočty!$C13,tblZnámkyZaPredmety[Typ],Výpočty!AG$5)*Nastavenie!I16,"") ->  | AH13: =IFERROR(AVERAGEIFS(tblZnámkyZaPredmety[Výsledky],tblZnámkyZaPredmety[Predmet],Výpočty!$C13,tblZnámkyZaPredmety[Typ],Výpočty!AH$5)*Nastavenie!J16,"") ->  | AI13: =IFERROR(AVERAGEIFS(tblZnámkyZaPredmety[Výsledky],tblZnámkyZaPredmety[Predmet],Výpočty!$C13,tblZnámkyZaPredmety[Typ],Výpočty!AI$5)*Nastavenie!K16,"") ->  | AJ13: =SUM(AC13:AI13) -> 0 | AK13: =SUMIFS(Nastavenie!E16:K16,Výpočty!AC13:AI13,">0") -> 0 | AL13: =IFERROR(AJ13/AK13,"") -> 
C14: =IF(Nastavenie!C17="","",Nastavenie!C17) ->  | AC14: =IFERROR(AVERAGEIFS(tblZnámkyZaPredmety[Výsledky],tblZnámkyZaPredmety[Predmet],Výpočty!$C14,tblZnámkyZaPredmety[Typ],Výpočty!AC$5)*Nastavenie!E17,"") ->  | AD14: =IFERROR(AVERAGEIFS(tblZnámkyZaPredmety[Výsledky],tblZnámkyZaPredmety[Predmet],Výpočty!$C14,tblZnámkyZaPredmety[Typ],Výpočty!AD$5)*Nastavenie!F17,"") ->  | AE14: =IFERROR(AVERAGEIFS(tblZnámkyZaPredmety[Výsledky],tblZnámkyZaPredmety[Predmet],Výpočty!$C14,tblZnámkyZaPredmety[Typ],Výpočty!AE$5)*Nastavenie!G17,"") ->  | AF14: =IFERROR(AVERAGEIFS(tblZnámkyZaPredmety[Výsledky],tblZnámkyZaPredmety[Predmet],Výpočty!$C14,tblZnámkyZaPredmety[Typ],Výpočty!AF$5)*Nastavenie!H17,"") ->  | AG14: =IFERROR(AVERAGEIFS(tblZnámkyZaPredmety[Výsledky],tblZnámkyZaPredmety[Predmet],Výpočty!$C14,tblZnámkyZaPredmety[Typ],Výpočty!AG$5)*Nastavenie!I17,"") ->  | AH14: =IFERROR(AVERAGEIFS(tblZnámkyZaPredmety[Výsledky],tblZnámkyZaPredmety[Predmet],Výpočty!$C14,tblZnámkyZaPredmety[Typ],Výpočty!AH$5)*Nastavenie!J17,"") ->  | AI14: =IFERROR(AVERAGEIFS(tblZnámkyZaPredmety[Výsledky],tblZnámkyZaPredmety[Predmet],Výpočty!$C14,tblZnámkyZaPredmety[Typ],Výpočty!AI$5)*Nastavenie!K17,"") ->  | AJ14: 0 | AK14: =SUMIFS(Nastavenie!E17:K17,Výpočty!AC14:AI14,">0") -> 0
C15: =IF(Nastavenie!C18="","",Nastavenie!C18) ->  | AC15: =IFERROR(AVERAGEIFS(tblZnámkyZaPredmety[Výsledky],tblZnámkyZaPredmety[Predmet],Výpočty!$C15,tblZnámkyZaPredmety[Typ],Výpočty!AC$5)*Nastavenie!E18,"") ->  | AD15: =IFERROR(AVERAGEIFS(tblZnámkyZaPredmety[Výsledky],tblZnámkyZaPredmety[Predmet],Výpočty!$C15,tblZnámkyZaPredmety[Typ],Výpočty!AD$5)*Nastavenie!F18,"") ->  | AE15: =IFERROR(AVERAGEIFS(tblZnámkyZaPredmety[Výsledky],tblZnámkyZaPredmety[Predmet],Výpočty!$C15,tblZnámkyZaPredmety[Typ],Výpočty!AE$5)*Nastavenie!G18,"") ->  | AF15: =IFERROR(AVERAGEIFS(tblZnámkyZaPredmety[Výsledky],tblZnámkyZaPredmety[Predmet],Výpočty!$C15,tblZnámkyZaPredmety[Typ],Výpočty!AF$5)*Nastavenie!H18,"") ->  | AG15: =IFERROR(AVERAGEIFS(tblZnámkyZaPredmety[Výsledky],tblZnámkyZaPredmety[Predmet],Výpočty!$C15,tblZnámkyZaPredmety[Typ],Výpočty!AG$5)*Nastavenie!I18,"") ->  | AH15: =IFERROR(AVERAGEIFS(tblZnámkyZaPredmety[Výsledky],tblZnámkyZaPredmety[Predmet],Výpočty!$C15,tblZnámkyZaPredmety[Typ],Výpočty!AH$5)*Nastavenie!J18,"") ->  | AI15: =IFERROR(AVERAGEIFS(tblZnámkyZaPredmety[Výsledky],tblZnámkyZaPredmety[Predmet],Výpočty!$C15,tblZnámkyZaPredmety[Typ],Výpočty!AI$5)*Nastavenie!K18,"") ->  | AJ15: 0 | AK15: =SUMIFS(Nastavenie!E18:K18,Výpočty!AC15:AI15,">0") -> 0
C16: =IF(Nastavenie!C19="","",Nastavenie!C19) ->  | AC16: =IFERROR(AVERAGEIFS(tblZnámkyZaPredmety[Výsledky],tblZnámkyZaPredmety[Predmet],Výpočty!$C16,tblZnámkyZaPredmety[Typ],Výpočty!AC$5)*Nastavenie!E19,"") ->  | AD16: =IFERROR(AVERAGEIFS(tblZnámkyZaPredmety[Výsledky],tblZnámkyZaPredmety[Predmet],Výpočty!$C16,tblZnámkyZaPredmety[Typ],Výpočty!AD$5)*Nastavenie!F19,"") ->  | AE16: =IFERROR(AVERAGEIFS(tblZnámkyZaPredmety[Výsledky],tblZnámkyZaPredmety[Predmet],Výpočty!$C16,tblZnámkyZaPredmety[Typ],Výpočty!AE$5)*Nastavenie!G19,"") ->  | AF16: =IFERROR(AVERAGEIFS(tblZnámkyZaPredmety[Výsledky],tblZnámkyZaPredmety[Predmet],Výpočty!$C16,tblZnámkyZaPredmety[Typ],Výpočty!AF$5)*Nastavenie!H19,"") ->  | AG16: =IFERROR(AVERAGEIFS(tblZnámkyZaPredmety[Výsledky],tblZnámkyZaPredmety[Predmet],Výpočty!$C16,tblZnámkyZaPredmety[Typ],Výpočty!AG$5)*Nastavenie!I19,"") ->  | AH16: =IFERROR(AVERAGEIFS(tblZnámkyZaPredmety[Výsledky],tblZnámkyZaPredmety[Predmet],Výpočty!$C16,tblZnámkyZaPredmety[Typ],Výpočty!AH$5)*Nastavenie!J19,"") ->  | AI16: =IFERROR(AVERAGEIFS(tblZnámkyZaPredmety[Výsledky],tblZnámkyZaPredmety[Predmet],Výpočty!$C16,tblZnámkyZaPredmety[Typ],Výpočty!AI$5)*Nastavenie!K19,"") ->  | AJ16: 0 | AK16: =SUMIFS(Nastavenie!E19:K19,Výpočty!AC16:AI16,">0") -> 0
C17: =IF(Nastavenie!C20="","",Nastavenie!C20) ->  | AC17: =IFERROR(AVERAGEIFS(tblZnámkyZaPredmety[Výsledky],tblZnámkyZaPredmety[Predmet],Výpočty!$C17,tblZnámkyZaPredmety[Typ],Výpočty!AC$5)*Nastavenie!E20,"") ->  | AD17: =IFERROR(AVERAGEIFS(tblZnámkyZaPredmety[Výsledky],tblZnámkyZaPredmety[Predmet],Výpočty!$C17,tblZnámkyZaPredmety[Typ],Výpočty!AD$5)*Nastavenie!F20,"") ->  | AE17: =IFERROR(AVERAGEIFS(tblZnámkyZaPredmety[Výsledky],tblZnámkyZaPredmety[Predmet],Výpočty!$C17,tblZnámkyZaPredmety[Typ],Výpočty!AE$5)*Nastavenie!G20,"") ->  | AF17: =IFERROR(AVERAGEIFS(tblZnámkyZaPredmety[Výsledky],tblZnámkyZaPredmety[Predmet],Výpočty!$C17,tblZnámkyZaPredmety[Typ],Výpočty!AF$5)*Nastavenie!H20,"") ->  | AG17: =IFERROR(AVERAGEIFS(tblZnámkyZaPredmety[Výsledky],tblZnámkyZaPredmety[Predmet],Výpočty!$C17,tblZnámkyZaPredmety[Typ],Výpočty!AG$5)*Nastavenie!I20,"") ->  | AH17: =IFERROR(AVERAGEIFS(tblZnámkyZaPredmety[Výsledky],tblZnámkyZaPredmety[Predmet],Výpočty!$C17,tblZnámkyZaPredmety[Typ],Výpočty!AH$5)*Nastavenie!J20,"") ->  | AI17: =IFERROR(AVERAGEIFS(tblZnámkyZaPredmety[Výsledky],tblZnámkyZaPredmety[Predmet],Výpočty!$C17,tblZnámkyZaPredmety[Typ],Výpočty!AI$5)*Nastavenie!K20,"") ->  | AJ17: 0 | AK17: =SUMIFS(Nastavenie!E20:K20,Výpočty!AC17:AI17,">0") -> 0
C18: =IF(Nastavenie!C21="","",Nastavenie!C21) ->  | AC18: =IFERROR(AVERAGEIFS(tblZnámkyZaPredmety[Výsledky],tblZnámkyZaPredmety[Predmet],Výpočty!$C18,tblZnámkyZaPredmety[Typ],Výpočty!AC$5)*Nastavenie!E21,"") ->  | AD18: =IFERROR(AVERAGEIFS(tblZnámkyZaPredmety[Výsledky],tblZnámkyZaPredmety[Predmet],Výpočty!$C18,tblZnámkyZaPredmety[Typ],Výpočty!AD$5)*Nastavenie!F21,"") ->  | AE18: =IFERROR(AVERAGEIFS(tblZnámkyZaPredmety[Výsledky],tblZnámkyZaPredmety[Predmet],Výpočty!$C18,tblZnámkyZaPredmety[Typ],Výpočty!AE$5)*Nastavenie!G21,"") ->  | AF18: =IFERROR(AVERAGEIFS(tblZnámkyZaPredmety[Výsledky],tblZnámkyZaPredmety[Predmet],Výpočty!$C18,tblZnámkyZaPredmety[Typ],Výpočty!AF$5)*Nastavenie!H21,"") ->  | AG18: =IFERROR(AVERAGEIFS(tblZnámkyZaPredmety[Výsledky],tblZnámkyZaPredmety[Predmet],Výpočty!$C18,tblZnámkyZaPredmety[Typ],Výpočty!AG$5)*Nastavenie!I21,"") ->  | AH18: =IFERROR(AVERAGEIFS(tblZnámkyZaPredmety[Výsledky],tblZnámkyZaPredmety[Predmet],Výpočty!$C18,tblZnámkyZaPredmety[Typ],Výpočty!AH$5)*Nastavenie!J21,"") ->  | AI18: =IFERROR(AVERAGEIFS(tblZnámkyZaPredmety[Výsledky],tblZnámkyZaPredmety[Predmet],Výpočty!$C18,tblZnámkyZaPredmety[Typ],Výpočty!AI$5)*Nastavenie!K21,"") ->  | AJ18: 0 | AK18: =SUMIFS(Nastavenie!E21:K21,Výpočty!AC18:AI18,">0") -> 0
C19: =IF(Nastavenie!C22="","",Nastavenie!C22) ->  | AC19: =IFERROR(AVERAGEIFS(tblZnámkyZaPredmety[Výsledky],tblZnámkyZaPredmety[Predmet],Výpočty!$C19,tblZnámkyZaPredmety[Typ],Výpočty!AC$5)*Nastavenie!E22,"") ->  | AD19: =IFERROR(AVERAGEIFS(tblZnámkyZaPredmety[Výsledky],tblZnámkyZaPredmety[Predmet],Výpočty!$C19,tblZnámkyZaPredmety[Typ],Výpočty!AD$5)*Nastavenie!F22,"") ->  | AE19: =IFERROR(AVERAGEIFS(tblZnámkyZaPredmety[Výsledky],tblZnámkyZaPredmety[Predmet],Výpočty!$C19,tblZnámkyZaPredmety[Typ],Výpočty!AE$5)*Nastavenie!G22,"") ->  | AF19: =IFERROR(AVERAGEIFS(tblZnámkyZaPredmety[Výsledky],tblZnámkyZaPredmety[Predmet],Výpočty!$C19,tblZnámkyZaPredmety[Typ],Výpočty!AF$5)*Nastavenie!H22,"") ->  | AG19: =IFERROR(AVERAGEIFS(tblZnámkyZaPredmety[Výsledky],tblZnámkyZaPredmety[Predmet],Výpočty!$C19,tblZnámkyZaPredmety[Typ],Výpočty!AG$5)*Nastavenie!I22,"") ->  | AH19: =IFERROR(AVERAGEIFS(tblZnámkyZaPredmety[Výsledky],tblZnámkyZaPredmety[Predmet],Výpočty!$C19,tblZnámkyZaPredmety[Typ],Výpočty!AH$5)*Nastavenie!J22,"") ->  | AI19: =IFERROR(AVERAGEIFS(tblZnámkyZaPredmety[Výsledky],tblZnámkyZaPredmety[Predmet],Výpočty!$C19,tblZnámkyZaPredmety[Typ],Výpočty!AI$5)*Nastavenie!K22,"") ->  | AJ19: 0 | AK19: =SUMIFS(Nastavenie!E22:K22,Výpočty!AC19:AI19,">0") -> 0
C20: =IF(Nastavenie!C23="","",Nastavenie!C23) ->  | AC20: =IFERROR(AVERAGEIFS(tblZnámkyZaPredmety[Výsledky],tblZnámkyZaPredmety[Predmet],Výpočty!$C20,tblZnámkyZaPredmety[Typ],Výpočty!AC$5)*Nastavenie!E23,"") ->  | AD20: =IFERROR(AVERAGEIFS(tblZnámkyZaPredmety[Výsledky],tblZnámkyZaPredmety[Predmet],Výpočty!$C20,tblZnámkyZaPredmety[Typ],Výpočty!AD$5)*Nastavenie!F23,"") ->  | AE20: =IFERROR(AVERAGEIFS(tblZnámkyZaPredmety[Výsledky],tblZnámkyZaPredmety[Predmet],Výpočty!$C20,tblZnámkyZaPredmety[Typ],Výpočty!AE$5)*Nastavenie!G23,"") ->  | AF20: =IFERROR(AVERAGEIFS(tblZnámkyZaPredmety[Výsledky],tblZnámkyZaPredmety[Predmet],Výpočty!$C20,tblZnámkyZaPredmety[Typ],Výpočty!AF$5)*Nastavenie!H23,"") ->  | AG20: =IFERROR(AVERAGEIFS(tblZnámkyZaPredmety[Výsledky],tblZnámkyZaPredmety[Predmet],Výpočty!$C20,tblZnámkyZaPredmety[Typ],Výpočty!AG$5)*Nastavenie!I23,"") ->  | AH20: =IFERROR(AVERAGEIFS(tblZnámkyZaPredmety[Výsledky],tblZnámkyZaPredmety[Predmet],Výpočty!$C20,tblZnámkyZaPredmety[Typ],Výpočty!AH$5)*Nastavenie!J23,"") ->  | AI20: =IFERROR(AVERAGEIFS(tblZnámkyZaPredmety[Výsledky],tblZnámkyZaPredmety[Predmet],Výpočty!$C20,tblZnámkyZaPredmety[Typ],Výpočty!AI$5)*Nastavenie!K23,"") ->  | AJ20: 0 | AK20: =SUMIFS(Nastavenie!E23:K23,Výpočty!AC20:AI20,">0") -> 0
C21: =IF(Nastavenie!C24="","",Nastavenie!C24) ->  | AC21: =IFERROR(AVERAGEIFS(tblZnámkyZaPredmety[Výsledky],tblZnámkyZaPredmety[Predmet],Výpočty!$C21,tblZnámkyZaPredmety[Typ],Výpočty!AC$5)*Nastavenie!E24,"") ->  | AD21: =IFERROR(AVERAGEIFS(tblZnámkyZaPredmety[Výsledky],tblZnámkyZaPredmety[Predmet],Výpočty!$C21,tblZnámkyZaPredmety[Typ],Výpočty!AD$5)*Nastavenie!F24,"") ->  | AE21: =IFERROR(AVERAGEIFS(tblZnámkyZaPredmety[Výsledky],tblZnámkyZaPredmety[Predmet],Výpočty!$C21,tblZnámkyZaPredmety[Typ],Výpočty!AE$5)*Nastavenie!G24,"") ->  | AF21: =IFERROR(AVERAGEIFS(tblZnámkyZaPredmety[Výsledky],tblZnámkyZaPredmety[Predmet],Výpočty!$C21,tblZnámkyZaPredmety[Typ],Výpočty!AF$5)*Nastavenie!H24,"") ->  | AG21: =IFERROR(AVERAGEIFS(tblZnámkyZaPredmety[Výsledky],tblZnámkyZaPredmety[Predmet],Výpočty!$C21,tblZnámkyZaPredmety[Typ],Výpočty!AG$5)*Nastavenie!I24,"") ->  | AH21: =IFERROR(AVERAGEIFS(tblZnámkyZaPredmety[Výsledky],tblZnámkyZaPredmety[Predmet],Výpočty!$C21,tblZnámkyZaPredmety[Typ],Výpočty!AH$5)*Nastavenie!J24,"") ->  | AI21: =IFERROR(AVERAGEIFS(tblZnámkyZaPredmety[Výsledky],tblZnámkyZaPredmety[Predmet],Výpočty!$C21,tblZnámkyZaPredmety[Typ],Výpočty!AI$5)*Nastavenie!K24,"") ->  | AJ21: 0 | AK21: =SUMIFS(Nastavenie!E24:K24,Výpočty!AC21:AI21,">0") -> 0
C22: =IF(Nastavenie!C25="","",Nastavenie!C25) ->  | AC22: =IFERROR(AVERAGEIFS(tblZnámkyZaPredmety[Výsledky],tblZnámkyZaPredmety[Predmet],Výpočty!$C22,tblZnámkyZaPredmety[Typ],Výpočty!AC$5)*Nastavenie!E25,"") ->  | AD22: =IFERROR(AVERAGEIFS(tblZnámkyZaPredmety[Výsledky],tblZnámkyZaPredmety[Predmet],Výpočty!$C22,tblZnámkyZaPredmety[Typ],Výpočty!AD$5)*Nastavenie!F25,"") ->  | AE22: =IFERROR(AVERAGEIFS(tblZnámkyZaPredmety[Výsledky],tblZnámkyZaPredmety[Predmet],Výpočty!$C22,tblZnámkyZaPredmety[Typ],Výpočty!AE$5)*Nastavenie!G25,"") ->  | AF22: =IFERROR(AVERAGEIFS(tblZnámkyZaPredmety[Výsledky],tblZnámkyZaPredmety[Predmet],Výpočty!$C22,tblZnámkyZaPredmety[Typ],Výpočty!AF$5)*Nastavenie!H25,"") ->  | AG22: =IFERROR(AVERAGEIFS(tblZnámkyZaPredmety[Výsledky],tblZnámkyZaPredmety[Predmet],Výpočty!$C22,tblZnámkyZaPredmety[Typ],Výpočty!AG$5)*Nastavenie!I25,"") ->  | AH22: =IFERROR(AVERAGEIFS(tblZnámkyZaPredmety[Výsledky],tblZnámkyZaPredmety[Predmet],Výpočty!$C22,tblZnámkyZaPredmety[Typ],Výpočty!AH$5)*Nastavenie!J25,"") ->  | AI22: =IFERROR(AVERAGEIFS(tblZnámkyZaPredmety[Výsledky],tblZnámkyZaPredmety[Predmet],Výpočty!$C22,tblZnámkyZaPredmety[Typ],Výpočty!AI$5)*Nastavenie!K25,"") ->  | AJ22: 0 | AK22: =SUMIFS(Nastavenie!E25:K25,Výpočty!AC22:AI22,">0") -> 0
C23: =IF(Nastavenie!C26="","",Nastavenie!C26) ->  | AC23: =IFERROR(AVERAGEIFS(tblZnámkyZaPredmety[Výsledky],tblZnámkyZaPredmety[Predmet],Výpočty!$C23,tblZnámkyZaPredmety[Typ],Výpočty!AC$5)*Nastavenie!E26,"") ->  | AD23: =IFERROR(AVERAGEIFS(tblZnámkyZaPredmety[Výsledky],tblZnámkyZaPredmety[Predmet],Výpočty!$C23,tblZnámkyZaPredmety[Typ],Výpočty!AD$5)*Nastavenie!F26,"") ->  | AE23: =IFERROR(AVERAGEIFS(tblZnámkyZaPredmety[Výsledky],tblZnámkyZaPredmety[Predmet],Výpočty!$C23,tblZnámkyZaPredmety[Typ],Výpočty!AE$5)*Nastavenie!G26,"") ->  | AF23: =IFERROR(AVERAGEIFS(tblZnámkyZaPredmety[Výsledky],tblZnámkyZaPredmety[Predmet],Výpočty!$C23,tblZnámkyZaPredmety[Typ],Výpočty!AF$5)*Nastavenie!H26,"") ->  | AG23: =IFERROR(AVERAGEIFS(tblZnámkyZaPredmety[Výsledky],tblZnámkyZaPredmety[Predmet],Výpočty!$C23,tblZnámkyZaPredmety[Typ],Výpočty!AG$5)*Nastavenie!I26,"") ->  | AH23: =IFERROR(AVERAGEIFS(tblZnámkyZaPredmety[Výsledky],tblZnámkyZaPredmety[Predmet],Výpočty!$C23,tblZnámkyZaPredmety[Typ],Výpočty!AH$5)*Nastavenie!J26,"") ->  | AI23: =IFERROR(AVERAGEIFS(tblZnámkyZaPredmety[Výsledky],tblZnámkyZaPredmety[Predmet],Výpočty!$C23,tblZnámkyZaPredmety[Typ],Výpočty!AI$5)*Nastavenie!K26,"") ->  | AJ23: 0 | AK23: =SUMIFS(Nastavenie!E26:K26,Výpočty!AC23:AI23,">0") -> 0
C24: =IF(Nastavenie!C27="","",Nastavenie!C27) ->  | AC24: =IFERROR(AVERAGEIFS(tblZnámkyZaPredmety[Výsledky],tblZnámkyZaPredmety[Predmet],Výpočty!$C24,tblZnámkyZaPredmety[Typ],Výpočty!AC$5)*Nastavenie!E27,"") ->  | AD24: =IFERROR(AVERAGEIFS(tblZnámkyZaPredmety[Výsledky],tblZnámkyZaPredmety[Predmet],Výpočty!$C24,tblZnámkyZaPredmety[Typ],Výpočty!AD$5)*Nastavenie!F27,"") ->  | AE24: =IFERROR(AVERAGEIFS(tblZnámkyZaPredmety[Výsledky],tblZnámkyZaPredmety[Predmet],Výpočty!$C24,tblZnámkyZaPredmety[Typ],Výpočty!AE$5)*Nastavenie!G27,"") ->  | AF24: =IFERROR(AVERAGEIFS(tblZnámkyZaPredmety[Výsledky],tblZnámkyZaPredmety[Predmet],Výpočty!$C24,tblZnámkyZaPredmety[Typ],Výpočty!AF$5)*Nastavenie!H27,"") ->  | AG24: =IFERROR(AVERAGEIFS(tblZnámkyZaPredmety[Výsledky],tblZnámkyZaPredmety[Predmet],Výpočty!$C24,tblZnámkyZaPredmety[Typ],Výpočty!AG$5)*Nastavenie!I27,"") ->  | AH24: =IFERROR(AVERAGEIFS(tblZnámkyZaPredmety[Výsledky],tblZnámkyZaPredmety[Predmet],Výpočty!$C24,tblZnámkyZaPredmety[Typ],Výpočty!AH$5)*Nastavenie!J27,"") ->  | AI24: =IFERROR(AVERAGEIFS(tblZnámkyZaPredmety[Výsledky],tblZnámkyZaPredmety[Predmet],Výpočty!$C24,tblZnámkyZaPredmety[Typ],Výpočty!AI$5)*Nastavenie!K27,"") ->  | AJ24: 0 | AK24: =SUMIFS(Nastavenie!E27:K27,Výpočty!AC24:AI24,">0") -> 0
C25: =IF(Nastavenie!C28="","",Nastavenie!C28) ->  | AC25: =IFERROR(AVERAGEIFS(tblZnámkyZaPredmety[Výsledky],tblZnámkyZaPredmety[Predmet],Výpočty!$C25,tblZnámkyZaPredmety[Typ],Výpočty!AC$5)*Nastavenie!E28,"") ->  | AD25: =IFERROR(AVERAGEIFS(tblZnámkyZaPredmety[Výsledky],tblZnámkyZaPredmety[Predmet],Výpočty!$C25,tblZnámkyZaPredmety[Typ],Výpočty!AD$5)*Nastavenie!F28,"") ->  | AE25: =IFERROR(AVERAGEIFS(tblZnámkyZaPredmety[Výsledky],tblZnámkyZaPredmety[Predmet],Výpočty!$C25,tblZnámkyZaPredmety[Typ],Výpočty!AE$5)*Nastavenie!G28,"") ->  | AF25: =IFERROR(AVERAGEIFS(tblZnámkyZaPredmety[Výsledky],tblZnámkyZaPredmety[Predmet],Výpočty!$C25,tblZnámkyZaPredmety[Typ],Výpočty!AF$5)*Nastavenie!H28,"") ->  | AG25: =IFERROR(AVERAGEIFS(tblZnámkyZaPredmety[Výsledky],tblZnámkyZaPredmety[Predmet],Výpočty!$C25,tblZnámkyZaPredmety[Typ],Výpočty!AG$5)*Nastavenie!I28,"") ->  | AH25: =IFERROR(AVERAGEIFS(tblZnámkyZaPredmety[Výsledky],tblZnámkyZaPredmety[Predmet],Výpočty!$C25,tblZnámkyZaPredmety[Typ],Výpočty!AH$5)*Nastavenie!J28,"") ->  | AI25: =IFERROR(AVERAGEIFS(tblZnámkyZaPredmety[Výsledky],tblZnámkyZaPredmety[Predmet],Výpočty!$C25,tblZnámkyZaPredmety[Typ],Výpočty!AI$5)*Nastavenie!K28,"") ->  | AJ25: 0 | AK25: =SUMIFS(Nastavenie!E28:K28,Výpočty!AC25:AI25,">0") -> 0
C26: =IF(Nastavenie!C29="","",Nastavenie!C29) ->  | AC26: =IFERROR(AVERAGEIFS(tblZnámkyZaPredmety[Výsledky],tblZnámkyZaPredmety[Predmet],Výpočty!$C26,tblZnámkyZaPredmety[Typ],Výpočty!AC$5)*Nastavenie!E29,"") ->  | AD26: =IFERROR(AVERAGEIFS(tblZnámkyZaPredmety[Výsledky],tblZnámkyZaPredmety[Predmet],Výpočty!$C26,tblZnámkyZaPredmety[Typ],Výpočty!AD$5)*Nastavenie!F29,"") ->  | AE26: =IFERROR(AVERAGEIFS(tblZnámkyZaPredmety[Výsledky],tblZnámkyZaPredmety[Predmet],Výpočty!$C26,tblZnámkyZaPredmety[Typ],Výpočty!AE$5)*Nastavenie!G29,"") ->  | AF26: =IFERROR(AVERAGEIFS(tblZnámkyZaPredmety[Výsledky],tblZnámkyZaPredmety[Predmet],Výpočty!$C26,tblZnámkyZaPredmety[Typ],Výpočty!AF$5)*Nastavenie!H29,"") ->  | AG26: =IFERROR(AVERAGEIFS(tblZnámkyZaPredmety[Výsledky],tblZnámkyZaPredmety[Predmet],Výpočty!$C26,tblZnámkyZaPredmety[Typ],Výpočty!AG$5)*Nastavenie!I29,"") ->  | AH26: =IFERROR(AVERAGEIFS(tblZnámkyZaPredmety[Výsledky],tblZnámkyZaPredmety[Predmet],Výpočty!$C26,tblZnámkyZaPredmety[Typ],Výpočty!AH$5)*Nastavenie!J29,"") ->  | AI26: =IFERROR(AVERAGEIFS(tblZnámkyZaPredmety[Výsledky],tblZnámkyZaPredmety[Predmet],Výpočty!$C26,tblZnámkyZaPredmety[Typ],Výpočty!AI$5)*Nastavenie!K29,"") ->  | AJ26: 0 | AK26: =SUMIFS(Nastavenie!E29:K29,Výpočty!AC26:AI26,">0") -> 0
C27: =IF(Nastavenie!C30="","",Nastavenie!C30) ->  | AC27: =IFERROR(AVERAGEIFS(tblZnámkyZaPredmety[Výsledky],tblZnámkyZaPredmety[Predmet],Výpočty!$C27,tblZnámkyZaPredmety[Typ],Výpočty!AC$5)*Nastavenie!E30,"") ->  | AD27: =IFERROR(AVERAGEIFS(tblZnámkyZaPredmety[Výsledky],tblZnámkyZaPredmety[Predmet],Výpočty!$C27,tblZnámkyZaPredmety[Typ],Výpočty!AD$5)*Nastavenie!F30,"") ->  | AE27: =IFERROR(AVERAGEIFS(tblZnámkyZaPredmety[Výsledky],tblZnámkyZaPredmety[Predmet],Výpočty!$C27,tblZnámkyZaPredmety[Typ],Výpočty!AE$5)*Nastavenie!G30,"") ->  | AF27: =IFERROR(AVERAGEIFS(tblZnámkyZaPredmety[Výsledky],tblZnámkyZaPredmety[Predmet],Výpočty!$C27,tblZnámkyZaPredmety[Typ],Výpočty!AF$5)*Nastavenie!H30,"") ->  | AG27: =IFERROR(AVERAGEIFS(tblZnámkyZaPredmety[Výsledky],tblZnámkyZaPredmety[Predmet],Výpočty!$C27,tblZnámkyZaPredmety[Typ],Výpočty!AG$5)*Nastavenie!I30,"") ->  | AH27: =IFERROR(AVERAGEIFS(tblZnámkyZaPredmety[Výsledky],tblZnámkyZaPredmety[Predmet],Výpočty!$C27,tblZnámkyZaPredmety[Typ],Výpočty!AH$5)*Nastavenie!J30,"") ->  | AI27: =IFERROR(AVERAGEIFS(tblZnámkyZaPredmety[Výsledky],tblZnámkyZaPredmety[Predmet],Výpočty!$C27,tblZnámkyZaPredmety[Typ],Výpočty!AI$5)*Nastavenie!K30,"") ->  | AJ27: 0 | AK27: =SUMIFS(Nastavenie!E30:K30,Výpočty!AC27:AI27,">0") -> 0
C28: =IF(Nastavenie!C31="","",Nastavenie!C31) ->  | AC28: =IFERROR(AVERAGEIFS(tblZnámkyZaPredmety[Výsledky],tblZnámkyZaPredmety[Predmet],Výpočty!$C28,tblZnámkyZaPredmety[Typ],Výpočty!AC$5)*Nastavenie!E31,"") ->  | AD28: =IFERROR(AVERAGEIFS(tblZnámkyZaPredmety[Výsledky],tblZnámkyZaPredmety[Predmet],Výpočty!$C28,tblZnámkyZaPredmety[Typ],Výpočty!AD$5)*Nastavenie!F31,"") ->  | AE28: =IFERROR(AVERAGEIFS(tblZnámkyZaPredmety[Výsledky],tblZnámkyZaPredmety[Predmet],Výpočty!$C28,tblZnámkyZaPredmety[Typ],Výpočty!AE$5)*Nastavenie!G31,"") ->  | AF28: =IFERROR(AVERAGEIFS(tblZnámkyZaPredmety[Výsledky],tblZnámkyZaPredmety[Predmet],Výpočty!$C28,tblZnámkyZaPredmety[Typ],Výpočty!AF$5)*Nastavenie!H31,"") ->  | AG28: =IFERROR(AVERAGEIFS(tblZnámkyZaPredmety[Výsledky],tblZnámkyZaPredmety[Predmet],Výpočty!$C28,tblZnámkyZaPredmety[Typ],Výpočty!AG$5)*Nastavenie!I31,"") ->  | AH28: =IFERROR(AVERAGEIFS(tblZnámkyZaPredmety[Výsledky],tblZnámkyZaPredmety[Predmet],Výpočty!$C28,tblZnámkyZaPredmety[Typ],Výpočty!AH$5)*Nastavenie!J31,"") ->  | AI28: =IFERROR(AVERAGEIFS(tblZnámkyZaPredmety[Výsledky],tblZnámkyZaPredmety[Predmet],Výpočty!$C28,tblZnámkyZaPredmety[Typ],Výpočty!AI$5)*Nastavenie!K31,"") ->  | AJ28: 0 | AK28: =SUMIFS(Nastavenie!E31:K31,Výpočty!AC28:AI28,">0") -> 0
C29: =IF(Nastavenie!C32="","",Nastavenie!C32) ->  | AC29: =IFERROR(AVERAGEIFS(tblZnámkyZaPredmety[Výsledky],tblZnámkyZaPredmety[Predmet],Výpočty!$C29,tblZnámkyZaPredmety[Typ],Výpočty!AC$5)*Nastavenie!E32,"") ->  | AD29: =IFERROR(AVERAGEIFS(tblZnámkyZaPredmety[Výsledky],tblZnámkyZaPredmety[Predmet],Výpočty!$C29,tblZnámkyZaPredmety[Typ],Výpočty!AD$5)*Nastavenie!F32,"") ->  | AE29: =IFERROR(AVERAGEIFS(tblZnámkyZaPredmety[Výsledky],tblZnámkyZaPredmety[Predmet],Výpočty!$C29,tblZnámkyZaPredmety[Typ],Výpočty!AE$5)*Nastavenie!G32,"") ->  | AF29: =IFERROR(AVERAGEIFS(tblZnámkyZaPredmety[Výsledky],tblZnámkyZaPredmety[Predmet],Výpočty!$C29,tblZnámkyZaPredmety[Typ],Výpočty!AF$5)*Nastavenie!H32,"") ->  | AG29: =IFERROR(AVERAGEIFS(tblZnámkyZaPredmety[Výsledky],tblZnámkyZaPredmety[Predmet],Výpočty!$C29,tblZnámkyZaPredmety[Typ],Výpočty!AG$5)*Nastavenie!I32,"") ->  | AH29: =IFERROR(AVERAGEIFS(tblZnámkyZaPredmety[Výsledky],tblZnámkyZaPredmety[Predmet],Výpočty!$C29,tblZnámkyZaPredmety[Typ],Výpočty!AH$5)*Nastavenie!J32,"") ->  | AI29: =IFERROR(AVERAGEIFS(tblZnámkyZaPredmety[Výsledky],tblZnámkyZaPredmety[Predmet],Výpočty!$C29,tblZnámkyZaPredmety[Typ],Výpočty!AI$5)*Nastavenie!K32,"") ->  | AJ29: 0 | AK29: =SUMIFS(Nastavenie!E32:K32,Výpočty!AC29:AI29,">0") -> 0
C30: =IF(Nastavenie!C33="","",Nastavenie!C33) ->  | AC30: =IFERROR(AVERAGEIFS(tblZnámkyZaPredmety[Výsledky],tblZnámkyZaPredmety[Predmet],Výpočty!$C30,tblZnámkyZaPredmety[Typ],Výpočty!AC$5)*Nastavenie!E33,"") ->  | AD30: =IFERROR(AVERAGEIFS(tblZnámkyZaPredmety[Výsledky],tblZnámkyZaPredmety[Predmet],Výpočty!$C30,tblZnámkyZaPredmety[Typ],Výpočty!AD$5)*Nastavenie!F33,"") ->  | AE30: =IFERROR(AVERAGEIFS(tblZnámkyZaPredmety[Výsledky],tblZnámkyZaPredmety[Predmet],Výpočty!$C30,tblZnámkyZaPredmety[Typ],Výpočty!AE$5)*Nastavenie!G33,"") ->  | AF30: =IFERROR(AVERAGEIFS(tblZnámkyZaPredmety[Výsledky],tblZnámkyZaPredmety[Predmet],Výpočty!$C30,tblZnámkyZaPredmety[Typ],Výpočty!AF$5)*Nastavenie!H33,"") ->  | AG30: =IFERROR(AVERAGEIFS(tblZnámkyZaPredmety[Výsledky],tblZnámkyZaPredmety[Predmet],Výpočty!$C30,tblZnámkyZaPredmety[Typ],Výpočty!AG$5)*Nastavenie!I33,"") ->  | AH30: =IFERROR(AVERAGEIFS(tblZnámkyZaPredmety[Výsledky],tblZnámkyZaPredmety[Predmet],Výpočty!$C30,tblZnámkyZaPredmety[Typ],Výpočty!AH$5)*Nastavenie!J33,"") ->  | AI30: =IFERROR(AVERAGEIFS(tblZnámkyZaPredmety[Výsledky],tblZnámkyZaPredmety[Predmet],Výpočty!$C30,tblZnámkyZaPredmety[Typ],Výpočty!AI$5)*Nastavenie!K33,"") ->  | AJ30: 0 | AK30: =SUMIFS(Nastavenie!E33:K33,Výpočty!AC30:AI30,">0") -> 0
B33: 1 | C33: ='Evidencia výsledkov'!C4&COUNTIF('Evidencia výsledkov'!$C$4:C4,'Evidencia výsledkov'!C4) -> Súčasná francúzština1
B34: 2 | C34: ='Evidencia výsledkov'!C5&COUNTIF('Evidencia výsledkov'!$C$4:C5,'Evidencia výsledkov'!C5) -> Pokročilé programovanie v jazyku Java1
B35: 3 | C35: ='Evidencia výsledkov'!C6&COUNTIF('Evidencia výsledkov'!$C$4:C6,'Evidencia výsledkov'!C6) -> Španielčina1
B36: 4 | C36: ='Evidencia výsledkov'!C7&COUNTIF('Evidencia výsledkov'!$C$4:C7,'Evidencia výsledkov'!C7) -> Teoretická fyzika1
B37: 5 | C37: ='Evidencia výsledkov'!C8&COUNTIF('Evidencia výsledkov'!$C$4:C8,'Evidencia výsledkov'!C8) -> Súčasná francúzština2
B38: 6 | C38: ='Evidencia výsledkov'!C9&COUNTIF('Evidencia výsledkov'!$C$4:C9,'Evidencia výsledkov'!C9) -> Súčasná francúzština3
B39: 7 | C39: ='Evidencia výsledkov'!C10&COUNTIF('Evidencia výsledkov'!$C$4:C10,'Evidencia výsledkov'!C10) -> Tvorivé písanie1
B40: 8 | C40: ='Evidencia výsledkov'!C11&COUNTIF('Evidencia výsledkov'!$C$4:C11,'Evidencia výsledkov'!C11) -> Matematika 11
B41: 9 | C41: ='Evidencia výsledkov'!C12&COUNTIF('Evidencia výsledkov'!$C$4:C12,'Evidencia výsledkov'!C12) -> Matematika 21
B42: 10 | C42: ='Evidencia výsledkov'!C13&COUNTIF('Evidencia výsledkov'!$C$4:C13,'Evidencia výsledkov'!C13) -> Matematika 12
B43: 11 | C43: ='Evidencia výsledkov'!C14&COUNTIF('Evidencia výsledkov'!$C$4:C14,'Evidencia výsledkov'!C14) -> Matematika 22
B44: 12 | C44: ='Evidencia výsledkov'!C15&COUNTIF('Evidencia výsledkov'!$C$4:C15,'Evidencia výsledkov'!C15) -> 0
B45: 13 | C45: ='Evidencia výsledkov'!C16&COUNTIF('Evidencia výsledkov'!$C$4:C16,'Evidencia výsledkov'!C16) -> 0
B46: 14 | C46: ='Evidencia výsledkov'!C17&COUNTIF('Evidencia výsledkov'!$C$4:C17,'Evidencia výsledkov'!C17) -> 0
B47: 15 | C47: ='Evidencia výsledkov'!C18&COUNTIF('Evidencia výsledkov'!$C$4:C18,'Evidencia výsledkov'!C18) -> 0
B48: 16 | C48: ='Evidencia výsledkov'!C19&COUNTIF('Evidencia výsledkov'!$C$4:C19,'Evidencia výsledkov'!C19) -> 0
B49: 17 | C49: ='Evidencia výsledkov'!C20&COUNTIF('Evidencia výsledkov'!$C$4:C20,'Evidencia výsledkov'!C20) -> 0
B50: 18 | C50: ='Evidencia výsledkov'!C21&COUNTIF('Evidencia výsledkov'!$C$4:C21,'Evidencia výsledkov'!C21) -> 0
B51: 19 | C51: ='Evidencia výsledkov'!C22&COUNTIF('Evidencia výsledkov'!$C$4:C22,'Evidencia výsledkov'!C22) -> 0
B52: 20 | C52: ='Evidencia výsledkov'!C23&COUNTIF('Evidencia výsledkov'!$C$4:C23,'Evidencia výsledkov'!C23) -> 0
B53: 21 | C53: ='Evidencia výsledkov'!C24&COUNTIF('Evidencia výsledkov'!$C$4:C24,'Evidencia výsledkov'!C24) -> 0
B54: 22 | C54: ='Evidencia výsledkov'!C25&COUNTIF('Evidencia výsledkov'!$C$4:C25,'Evidencia výsledkov'!C25) -> 0
B55: 23 | C55: ='Evidencia výsledkov'!C26&COUNTIF('Evidencia výsledkov'!$C$4:C26,'Evidencia výsledkov'!C26) -> 0
B56: 24 | C56: ='Evidencia výsledkov'!C27&COUNTIF('Evidencia výsledkov'!$C$4:C27,'Evidencia výsledkov'!C27) -> 0
B57: 25 | C57: ='Evidencia výsledkov'!C28&COUNTIF('Evidencia výsledkov'!$C$4:C28,'Evidencia výsledkov'!C28) -> 0
B58: 26 | C58: ='Evidencia výsledkov'!C29&COUNTIF('Evidencia výsledkov'!$C$4:C29,'Evidencia výsledkov'!C29) -> 0
B59: 27 | C59: ='Evidencia výsledkov'!C30&COUNTIF('Evidencia výsledkov'!$C$4:C30,'Evidencia výsledkov'!C30) -> 0
B60: 28 | C60: ='Evidencia výsledkov'!C31&COUNTIF('Evidencia výsledkov'!$C$4:C31,'Evidencia výsledkov'!C31) -> 0
B61: 29 | C61: ='Evidencia výsledkov'!C32&COUNTIF('Evidencia výsledkov'!$C$4:C32,'Evidencia výsledkov'!C32) -> 0
B62: 30 | C62: ='Evidencia výsledkov'!C33&COUNTIF('Evidencia výsledkov'!$C$4:C33,'Evidencia výsledkov'!C33) -> 0
B63: 31 | C63: ='Evidencia výsledkov'!C34&COUNTIF('Evidencia výsledkov'!$C$4:C34,'Evidencia výsledkov'!C34) -> 0
B64: 32 | C64: ='Evidencia výsledkov'!C35&COUNTIF('Evidencia výsledkov'!$C$4:C35,'Evidencia výsledkov'!C35) -> 0
B65: 33 | C65: ='Evidencia výsledkov'!C36&COUNTIF('Evidencia výsledkov'!$C$4:C36,'Evidencia výsledkov'!C36) -> 0
B66: 34 | C66: ='Evidencia výsledkov'!C37&COUNTIF('Evidencia výsledkov'!$C$4:C37,'Evidencia výsledkov'!C37) -> 0
B67: 35 | C67: ='Evidencia výsledkov'!C38&COUNTIF('Evidencia výsledkov'!$C$4:C38,'Evidencia výsledkov'!C38) -> 0
B68: 36 | C68: ='Evidencia výsledkov'!C39&COUNTIF('Evidencia výsledkov'!$C$4:C39,'Evidencia výsledkov'!C39) -> 0
B69: 37 | C69: ='Evidencia výsledkov'!C40&COUNTIF('Evidencia výsledkov'!$C$4:C40,'Evidencia výsledkov'!C40) -> 0
B70: 38 | C70: ='Evidencia výsledkov'!C41&COUNTIF('Evidencia výsledkov'!$C$4:C41,'Evidencia výsledkov'!C41) -> 0
B71: 39 | C71: ='Evidencia výsledkov'!C42&COUNTIF('Evidencia výsledkov'!$C$4:C42,'Evidencia výsledkov'!C42) -> 0
B72: 40 | C72: ='Evidencia výsledkov'!C43&COUNTIF('Evidencia výsledkov'!$C$4:C43,'Evidencia výsledkov'!C43) -> 0
B73: 41 | C73: ='Evidencia výsledkov'!C44&COUNTIF('Evidencia výsledkov'!$C$4:C44,'Evidencia výsledkov'!C44) -> 0
B74: 42 | C74: ='Evidencia výsledkov'!C45&COUNTIF('Evidencia výsledkov'!$C$4:C45,'Evidencia výsledkov'!C45) -> 0
B75: 43 | C75: ='Evidencia výsledkov'!C46&COUNTIF('Evidencia výsledkov'!$C$4:C46,'Evidencia výsledkov'!C46) -> 0
B76: 44 | C76: ='Evidencia výsledkov'!C47&COUNTIF('Evidencia výsledkov'!$C$4:C47,'Evidencia výsledkov'!C47) -> 0
B77: 45 | C77: ='Evidencia výsledkov'!C48&COUNTIF('Evidencia výsledkov'!$C$4:C48,'Evidencia výsledkov'!C48) -> 0
B78: 46 | C78: ='Evidencia výsledkov'!C49&COUNTIF('Evidencia výsledkov'!$C$4:C49,'Evidencia výsledkov'!C49) -> 0
B79: 47 | C79: ='Evidencia výsledkov'!C50&COUNTIF('Evidencia výsledkov'!$C$4:C50,'Evidencia výsledkov'!C50) -> 0
B80: 48 | C80: ='Evidencia výsledkov'!C51&COUNTIF('Evidencia výsledkov'!$C$4:C51,'Evidencia výsledkov'!C51) -> 0
B81: 49 | C81: ='Evidencia výsledkov'!C52&COUNTIF('Evidencia výsledkov'!$C$4:C52,'Evidencia výsledkov'!C52) -> 0
B82: 50 | C82: ='Evidencia výsledkov'!C53&COUNTIF('Evidencia výsledkov'!$C$4:C53,'Evidencia výsledkov'!C53) -> 0
B83: 51 | C83: ='Evidencia výsledkov'!C54&COUNTIF('Evidencia výsledkov'!$C$4:C54,'Evidencia výsledkov'!C54) -> 0
B84: 52 | C84: ='Evidencia výsledkov'!C55&COUNTIF('Evidencia výsledkov'!$C$4:C55,'Evidencia výsledkov'!C55) -> 0
B85: 53 | C85: ='Evidencia výsledkov'!C56&COUNTIF('Evidencia výsledkov'!$C$4:C56,'Evidencia výsledkov'!C56) -> 0
B86: 54 | C86: ='Evidencia výsledkov'!C57&COUNTIF('Evidencia výsledkov'!$C$4:C57,'Evidencia výsledkov'!C57) -> 0
B87: 55 | C87: ='Evidencia výsledkov'!C58&COUNTIF('Evidencia výsledkov'!$C$4:C58,'Evidencia výsledkov'!C58) -> 0
B88: 56 | C88: ='Evidencia výsledkov'!C59&COUNTIF('Evidencia výsledkov'!$C$4:C59,'Evidencia výsledkov'!C59) -> 0
B89: 57 | C89: ='Evidencia výsledkov'!C60&COUNTIF('Evidencia výsledkov'!$C$4:C60,'Evidencia výsledkov'!C60) -> 0
B90: 58 | C90: ='Evidencia výsledkov'!C61&COUNTIF('Evidencia výsledkov'!$C$4:C61,'Evidencia výsledkov'!C61) -> 0
B91: 59 | C91: ='Evidencia výsledkov'!C62&COUNTIF('Evidencia výsledkov'!$C$4:C62,'Evidencia výsledkov'!C62) -> 0
B92: 60 | C92: ='Evidencia výsledkov'!C63&COUNTIF('Evidencia výsledkov'!$C$4:C63,'Evidencia výsledkov'!C63) -> 0
B93: 61 | C93: ='Evidencia výsledkov'!C64&COUNTIF('Evidencia výsledkov'!$C$4:C64,'Evidencia výsledkov'!C64) -> 0
B94: 62 | C94: ='Evidencia výsledkov'!C65&COUNTIF('Evidencia výsledkov'!$C$4:C65,'Evidencia výsledkov'!C65) -> 0
B95: 63 | C95: ='Evidencia výsledkov'!C66&COUNTIF('Evidencia výsledkov'!$C$4:C66,'Evidencia výsledkov'!C66) -> 0
B96: 64 | C96: ='Evidencia výsledkov'!C67&COUNTIF('Evidencia výsledkov'!$C$4:C67,'Evidencia výsledkov'!C67) -> 0
B97: 65 | C97: ='Evidencia výsledkov'!C68&COUNTIF('Evidencia výsledkov'!$C$4:C68,'Evidencia výsledkov'!C68) -> 0
B98: 66 | C98: ='Evidencia výsledkov'!C69&COUNTIF('Evidencia výsledkov'!$C$4:C69,'Evidencia výsledkov'!C69) -> 0
B99: 67 | C99: ='Evidencia výsledkov'!C70&COUNTIF('Evidencia výsledkov'!$C$4:C70,'Evidencia výsledkov'!C70) -> 0
B100: 68 | C100: ='Evidencia výsledkov'!C71&COUNTIF('Evidencia výsledkov'!$C$4:C71,'Evidencia výsledkov'!C71) -> 0
B101: 69 | C101: ='Evidencia výsledkov'!C72&COUNTIF('Evidencia výsledkov'!$C$4:C72,'Evidencia výsledkov'!C72) -> 0
B102: 70 | C102: ='Evidencia výsledkov'!C73&COUNTIF('Evidencia výsledkov'!$C$4:C73,'Evidencia výsledkov'!C73) -> 0
B103: 71 | C103: ='Evidencia výsledkov'!C74&COUNTIF('Evidencia výsledkov'!$C$4:C74,'Evidencia výsledkov'!C74) -> 0
B104: 72 | C104: ='Evidencia výsledkov'!C75&COUNTIF('Evidencia výsledkov'!$C$4:C75,'Evidencia výsledkov'!C75) -> 0
B105: 73 | C105: ='Evidencia výsledkov'!C76&COUNTIF('Evidencia výsledkov'!$C$4:C76,'Evidencia výsledkov'!C76) -> 0
B106: 74 | C106: ='Evidencia výsledkov'!C77&COUNTIF('Evidencia výsledkov'!$C$4:C77,'Evidencia výsledkov'!C77) -> 0
B107: 75 | C107: ='Evidencia výsledkov'!C78&COUNTIF('Evidencia výsledkov'!$C$4:C78,'Evidencia výsledkov'!C78) -> 0
B108: 76 | C108: ='Evidencia výsledkov'!C79&COUNTIF('Evidencia výsledkov'!$C$4:C79,'Evidencia výsledkov'!C79) -> 0
B109: 77 | C109: ='Evidencia výsledkov'!C80&COUNTIF('Evidencia výsledkov'!$C$4:C80,'Evidencia výsledkov'!C80) -> 0
B110: 78 | C110: ='Evidencia výsledkov'!C81&COUNTIF('Evidencia výsledkov'!$C$4:C81,'Evidencia výsledkov'!C81) -> 0
B111: 79 | C111: ='Evidencia výsledkov'!C82&COUNTIF('Evidencia výsledkov'!$C$4:C82,'Evidencia výsledkov'!C82) -> 0
B112: 80 | C112: ='Evidencia výsledkov'!C83&COUNTIF('Evidencia výsledkov'!$C$4:C83,'Evidencia výsledkov'!C83) -> 0
B113: 81 | C113: ='Evidencia výsledkov'!C84&COUNTIF('Evidencia výsledkov'!$C$4:C84,'Evidencia výsledkov'!C84) -> 0
B114: 82 | C114: ='Evidencia výsledkov'!C85&COUNTIF('Evidencia výsledkov'!$C$4:C85,'Evidencia výsledkov'!C85) -> 0
B115: 83 | C115: ='Evidencia výsledkov'!C86&COUNTIF('Evidencia výsledkov'!$C$4:C86,'Evidencia výsledkov'!C86) -> 0
B116: 84 | C116: ='Evidencia výsledkov'!C87&COUNTIF('Evidencia výsledkov'!$C$4:C87,'Evidencia výsledkov'!C87) -> 0
B117: 85 | C117: ='Evidencia výsledkov'!C88&COUNTIF('Evidencia výsledkov'!$C$4:C88,'Evidencia výsledkov'!C88) -> 0
B118: 86 | C118: ='Evidencia výsledkov'!C89&COUNTIF('Evidencia výsledkov'!$C$4:C89,'Evidencia výsledkov'!C89) -> 0
B119: 87 | C119: ='Evidencia výsledkov'!C90&COUNTIF('Evidencia výsledkov'!$C$4:C90,'Evidencia výsledkov'!C90) -> 0
B120: 88 | C120: ='Evidencia výsledkov'!C91&COUNTIF('Evidencia výsledkov'!$C$4:C91,'Evidencia výsledkov'!C91) -> 0
B121: 89 | C121: ='Evidencia výsledkov'!C92&COUNTIF('Evidencia výsledkov'!$C$4:C92,'Evidencia výsledkov'!C92) -> 0
B122: 90 | C122: ='Evidencia výsledkov'!C93&COUNTIF('Evidencia výsledkov'!$C$4:C93,'Evidencia výsledkov'!C93) -> 0
B123: 91 | C123: ='Evidencia výsledkov'!C94&COUNTIF('Evidencia výsledkov'!$C$4:C94,'Evidencia výsledkov'!C94) -> 0
B124: 92 | C124: ='Evidencia výsledkov'!C95&COUNTIF('Evidencia výsledkov'!$C$4:C95,'Evidencia výsledkov'!C95) -> 0
B125: 93 | C125: ='Evidencia výsledkov'!C96&COUNTIF('Evidencia výsledkov'!$C$4:C96,'Evidencia výsledkov'!C96) -> 0
B126: 94 | C126: ='Evidencia výsledkov'!C97&COUNTIF('Evidencia výsledkov'!$C$4:C97,'Evidencia výsledkov'!C97) -> 0
B127: 95 | C127: ='Evidencia výsledkov'!C98&COUNTIF('Evidencia výsledkov'!$C$4:C98,'Evidencia výsledkov'!C98) -> 0
B128: 96 | C128: ='Evidencia výsledkov'!C99&COUNTIF('Evidencia výsledkov'!$C$4:C99,'Evidencia výsledkov'!C99) -> 0
B129: 97 | C129: ='Evidencia výsledkov'!C100&COUNTIF('Evidencia výsledkov'!$C$4:C100,'Evidencia výsledkov'!C100) -> 0
B130: 98 | C130: ='Evidencia výsledkov'!C101&COUNTIF('Evidencia výsledkov'!$C$4:C101,'Evidencia výsledkov'!C101) -> 0
B131: 99 | C131: ='Evidencia výsledkov'!C102&COUNTIF('Evidencia výsledkov'!$C$4:C102,'Evidencia výsledkov'!C102) -> 0
B132: 100 | C132: ='Evidencia výsledkov'!C103&COUNTIF('Evidencia výsledkov'!$C$4:C103,'Evidencia výsledkov'!C103) -> 0
B133: 101 | C133: ='Evidencia výsledkov'!C104&COUNTIF('Evidencia výsledkov'!$C$4:C104,'Evidencia výsledkov'!C104) -> 0
B134: 102 | C134: ='Evidencia výsledkov'!C105&COUNTIF('Evidencia výsledkov'!$C$4:C105,'Evidencia výsledkov'!C105) -> 0
B135: 103 | C135: ='Evidencia výsledkov'!C106&COUNTIF('Evidencia výsledkov'!$C$4:C106,'Evidencia výsledkov'!C106) -> 0
B136: 104 | C136: ='Evidencia výsledkov'!C107&COUNTIF('Evidencia výsledkov'!$C$4:C107,'Evidencia výsledkov'!C107) -> 0
B137: 105 | C137: ='Evidencia výsledkov'!C108&COUNTIF('Evidencia výsledkov'!$C$4:C108,'Evidencia výsledkov'!C108) -> 0
B138: 106 | C138: ='Evidencia výsledkov'!C109&COUNTIF('Evidencia výsledkov'!$C$4:C109,'Evidencia výsledkov'!C109) -> 0
B139: 107 | C139: ='Evidencia výsledkov'!C110&COUNTIF('Evidencia výsledkov'!$C$4:C110,'Evidencia výsledkov'!C110) -> 0
B140: 108 | C140: ='Evidencia výsledkov'!C111&COUNTIF('Evidencia výsledkov'!$C$4:C111,'Evidencia výsledkov'!C111) -> 0
B141: 109 | C141: ='Evidencia výsledkov'!C112&COUNTIF('Evidencia výsledkov'!$C$4:C112,'Evidencia výsledkov'!C112) -> 0
B142: 110 | C142: ='Evidencia výsledkov'!C113&COUNTIF('Evidencia výsledkov'!$C$4:C113,'Evidencia výsledkov'!C113) -> 0
B143: 111 | C143: ='Evidencia výsledkov'!C114&COUNTIF('Evidencia výsledkov'!$C$4:C114,'Evidencia výsledkov'!C114) -> 0
B144: 112 | C144: ='Evidencia výsledkov'!C115&COUNTIF('Evidencia výsledkov'!$C$4:C115,'Evidencia výsledkov'!C115) -> 0
B145: 113 | C145: ='Evidencia výsledkov'!C116&COUNTIF('Evidencia výsledkov'!$C$4:C116,'Evidencia výsledkov'!C116) -> 0
B146: 114 | C146: ='Evidencia výsledkov'!C117&COUNTIF('Evidencia výsledkov'!$C$4:C117,'Evidencia výsledkov'!C117) -> 0
B147: 115 | C147: ='Evidencia výsledkov'!C118&COUNTIF('Evidencia výsledkov'!$C$4:C118,'Evidencia výsledkov'!C118) -> 0
B148: 116 | C148: ='Evidencia výsledkov'!C119&COUNTIF('Evidencia výsledkov'!$C$4:C119,'Evidencia výsledkov'!C119) -> 0
B149: 117 | C149: ='Evidencia výsledkov'!C120&COUNTIF('Evidencia výsledkov'!$C$4:C120,'Evidencia výsledkov'!C120) -> 0
B150: 118 | C150: ='Evidencia výsledkov'!C121&COUNTIF('Evidencia výsledkov'!$C$4:C121,'Evidencia výsledkov'!C121) -> 0
B151: 119 | C151: ='Evidencia výsledkov'!C122&COUNTIF('Evidencia výsledkov'!$C$4:C122,'Evidencia výsledkov'!C122) -> 0
B152: 120 | C152: ='Evidencia výsledkov'!C123&COUNTIF('Evidencia výsledkov'!$C$4:C123,'Evidencia výsledkov'!C123) -> 0
B153: 121 | C153: ='Evidencia výsledkov'!C124&COUNTIF('Evidencia výsledkov'!$C$4:C124,'Evidencia výsledkov'!C124) -> 0
B154: 122 | C154: ='Evidencia výsledkov'!C125&COUNTIF('Evidencia výsledkov'!$C$4:C125,'Evidencia výsledkov'!C125) -> 0
B155: 123 | C155: ='Evidencia výsledkov'!C126&COUNTIF('Evidencia výsledkov'!$C$4:C126,'Evidencia výsledkov'!C126) -> 0
B156: 124 | C156: ='Evidencia výsledkov'!C127&COUNTIF('Evidencia výsledkov'!$C$4:C127,'Evidencia výsledkov'!C127) -> 0
B157: 125 | C157: ='Evidencia výsledkov'!C128&COUNTIF('Evidencia výsledkov'!$C$4:C128,'Evidencia výsledkov'!C128) -> 0
B158: 126 | C158: ='Evidencia výsledkov'!C129&COUNTIF('Evidencia výsledkov'!$C$4:C129,'Evidencia výsledkov'!C129) -> 0
B159: 127 | C159: ='Evidencia výsledkov'!C130&COUNTIF('Evidencia výsledkov'!$C$4:C130,'Evidencia výsledkov'!C130) -> 0
B160: 128 | C160: ='Evidencia výsledkov'!C131&COUNTIF('Evidencia výsledkov'!$C$4:C131,'Evidencia výsledkov'!C131) -> 0
B161: 129 | C161: ='Evidencia výsledkov'!C132&COUNTIF('Evidencia výsledkov'!$C$4:C132,'Evidencia výsledkov'!C132) -> 0
B162: 130 | C162: ='Evidencia výsledkov'!C133&COUNTIF('Evidencia výsledkov'!$C$4:C133,'Evidencia výsledkov'!C133) -> 0
B163: 131 | C163: ='Evidencia výsledkov'!C134&COUNTIF('Evidencia výsledkov'!$C$4:C134,'Evidencia výsledkov'!C134) -> 0
B164: 132 | C164: ='Evidencia výsledkov'!C135&COUNTIF('Evidencia výsledkov'!$C$4:C135,'Evidencia výsledkov'!C135) -> 0
B165: 133 | C165: ='Evidencia výsledkov'!C136&COUNTIF('Evidencia výsledkov'!$C$4:C136,'Evidencia výsledkov'!C136) -> 0
B166: 134 | C166: ='Evidencia výsledkov'!C137&COUNTIF('Evidencia výsledkov'!$C$4:C137,'Evidencia výsledkov'!C137) -> 0
B167: 135 | C167: ='Evidencia výsledkov'!C138&COUNTIF('Evidencia výsledkov'!$C$4:C138,'Evidencia výsledkov'!C138) -> 0
B168: 136 | C168: ='Evidencia výsledkov'!C139&COUNTIF('Evidencia výsledkov'!$C$4:C139,'Evidencia výsledkov'!C139) -> 0
B169: 137 | C169: ='Evidencia výsledkov'!C140&COUNTIF('Evidencia výsledkov'!$C$4:C140,'Evidencia výsledkov'!C140) -> 0
B170: 138 | C170: ='Evidencia výsledkov'!C141&COUNTIF('Evidencia výsledkov'!$C$4:C141,'Evidencia výsledkov'!C141) -> 0
B171: 139 | C171: ='Evidencia výsledkov'!C142&COUNTIF('Evidencia výsledkov'!$C$4:C142,'Evidencia výsledkov'!C142) -> 0
B172: 140 | C172: ='Evidencia výsledkov'!C143&COUNTIF('Evidencia výsledkov'!$C$4:C143,'Evidencia výsledkov'!C143) -> 0
B173: 141 | C173: ='Evidencia výsledkov'!C144&COUNTIF('Evidencia výsledkov'!$C$4:C144,'Evidencia výsledkov'!C144) -> 0
B174: 142 | C174: ='Evidencia výsledkov'!C145&COUNTIF('Evidencia výsledkov'!$C$4:C145,'Evidencia výsledkov'!C145) -> 0
B175: 143 | C175: ='Evidencia výsledkov'!C146&COUNTIF('Evidencia výsledkov'!$C$4:C146,'Evidencia výsledkov'!C146) -> 0
B176: 144 | C176: ='Evidencia výsledkov'!C147&COUNTIF('Evidencia výsledkov'!$C$4:C147,'Evidencia výsledkov'!C147) -> 0
B177: 145 | C177: ='Evidencia výsledkov'!C148&COUNTIF('Evidencia výsledkov'!$C$4:C148,'Evidencia výsledkov'!C148) -> 0
B178: 146 | C178: ='Evidencia výsledkov'!C149&COUNTIF('Evidencia výsledkov'!$C$4:C149,'Evidencia výsledkov'!C149) -> 0
B179: 147 | C179: ='Evidencia výsledkov'!C150&COUNTIF('Evidencia výsledkov'!$C$4:C150,'Evidencia výsledkov'!C150) -> 0
B180: 148 | C180: ='Evidencia výsledkov'!C151&COUNTIF('Evidencia výsledkov'!$C$4:C151,'Evidencia výsledkov'!C151) -> 0
B181: 149 | C181: ='Evidencia výsledkov'!C152&COUNTIF('Evidencia výsledkov'!$C$4:C152,'Evidencia výsledkov'!C152) -> 0
B182: 150 | C182: ='Evidencia výsledkov'!C153&COUNTIF('Evidencia výsledkov'!$C$4:C153,'Evidencia výsledkov'!C153) -> 0
B183: 151 | C183: ='Evidencia výsledkov'!C154&COUNTIF('Evidencia výsledkov'!$C$4:C154,'Evidencia výsledkov'!C154) -> 0
B184: 152 | C184: ='Evidencia výsledkov'!C155&COUNTIF('Evidencia výsledkov'!$C$4:C155,'Evidencia výsledkov'!C155) -> 0
B185: 153 | C185: ='Evidencia výsledkov'!C156&COUNTIF('Evidencia výsledkov'!$C$4:C156,'Evidencia výsledkov'!C156) -> 0
B186: 154 | C186: ='Evidencia výsledkov'!C157&COUNTIF('Evidencia výsledkov'!$C$4:C157,'Evidencia výsledkov'!C157) -> 0
B187: 155 | C187: ='Evidencia výsledkov'!C158&COUNTIF('Evidencia výsledkov'!$C$4:C158,'Evidencia výsledkov'!C158) -> 0
B188: 156 | C188: ='Evidencia výsledkov'!C159&COUNTIF('Evidencia výsledkov'!$C$4:C159,'Evidencia výsledkov'!C159) -> 0
B189: 157 | C189: ='Evidencia výsledkov'!C160&COUNTIF('Evidencia výsledkov'!$C$4:C160,'Evidencia výsledkov'!C160) -> 0
B190: 158 | C190: ='Evidencia výsledkov'!C161&COUNTIF('Evidencia výsledkov'!$C$4:C161,'Evidencia výsledkov'!C161) -> 0
B191: 159 | C191: ='Evidencia výsledkov'!C162&COUNTIF('Evidencia výsledkov'!$C$4:C162,'Evidencia výsledkov'!C162) -> 0
B192: 160 | C192: ='Evidencia výsledkov'!C163&COUNTIF('Evidencia výsledkov'!$C$4:C163,'Evidencia výsledkov'!C163) -> 0
B193: 161 | C193: ='Evidencia výsledkov'!C164&COUNTIF('Evidencia výsledkov'!$C$4:C164,'Evidencia výsledkov'!C164) -> 0
B194: 162 | C194: ='Evidencia výsledkov'!C165&COUNTIF('Evidencia výsledkov'!$C$4:C165,'Evidencia výsledkov'!C165) -> 0
B195: 163 | C195: ='Evidencia výsledkov'!C166&COUNTIF('Evidencia výsledkov'!$C$4:C166,'Evidencia výsledkov'!C166) -> 0
B196: 164 | C196: ='Evidencia výsledkov'!C167&COUNTIF('Evidencia výsledkov'!$C$4:C167,'Evidencia výsledkov'!C167) -> 0
B197: 165 | C197: ='Evidencia výsledkov'!C168&COUNTIF('Evidencia výsledkov'!$C$4:C168,'Evidencia výsledkov'!C168) -> 0
B198: 166 | C198: ='Evidencia výsledkov'!C169&COUNTIF('Evidencia výsledkov'!$C$4:C169,'Evidencia výsledkov'!C169) -> 0
B199: 167 | C199: ='Evidencia výsledkov'!C170&COUNTIF('Evidencia výsledkov'!$C$4:C170,'Evidencia výsledkov'!C170) -> 0
B200: 168 | C200: ='Evidencia výsledkov'!C171&COUNTIF('Evidencia výsledkov'!$C$4:C171,'Evidencia výsledkov'!C171) -> 0
B201: 169 | C201: ='Evidencia výsledkov'!C172&COUNTIF('Evidencia výsledkov'!$C$4:C172,'Evidencia výsledkov'!C172) -> 0
B202: 170 | C202: ='Evidencia výsledkov'!C173&COUNTIF('Evidencia výsledkov'!$C$4:C173,'Evidencia výsledkov'!C173) -> 0
B203: 171 | C203: ='Evidencia výsledkov'!C174&COUNTIF('Evidencia výsledkov'!$C$4:C174,'Evidencia výsledkov'!C174) -> 0
... 454 more rows
